[Event "5th Sharjah Masters 2022"]
[Site "Sharjah"]
[Date "2022.05.24"]
[Round "4.16"]
[White "Chigaev, Maksim"]
[Black "Haznedaroglu, Kivanc"]
[Result "1-0"]
[ECO "E09"]
[WhiteElo "2631"]
[BlackElo "2425"]
[Annotator "TA"]
[PlyCount "129"]
[EventDate "2022.05.21"]
[EventType "swiss"]
[EventCountry "UAE"]
[SourceTitle "playchess.com"]
[Source "ChessBase"]
[SourceQuality "1"]
[TimeControl "5400+30"]

{[%evp 25,129,33,35,33,34,29,40,38,40,28,31,30,16,41,34,56,87,86,74,60,61,36,69,65,72,70,66,6,10,0,0,0,84,0,45,0,16,-51,-52,-45,-22,-24,0,0,48,4,7,0,0,0,0,0,0,0,9,0,83,77,83,63,51,60,49,0,0,0,357,357,357,281,267,267,267,250,339,339,12832,12832,12826,12833,12841,12841,12846,12847,12847,12847,12850,12850,12850,27999,27999,27999,27999,27999,27999,27999,27999,27999,27999,27999,27999,27999,27999,27999,27999,27999]} 1. Nf3 {[%emt 0:00:18]} Nf6 {[%emt 0:00:29]} 2. c4 {[%emt 0:00:10]} e6 {[%emt 0:00:27]} 3. g3 {[%emt 0:00:08]} b6 {[%emt 0:02:26]} 4. Bg2 {[%emt 0:00:23]} Bb7 {[%emt 0:00:11]} 5. d4 {[%emt 0:00:51]} c6 {[%emt 0:04:04]} 6. O-O {[%emt 0:04:50]} d5 {[%emt 0:00:22]} 7. Qc2 {[%emt 0:13:46]} Be7 {[%emt 0:02:48]} 8. Nbd2 {[%emt 0:00:57]} Nbd7 {[%emt 0:04:21]} 9. e4 {[%emt 0:00:42]} dxe4 {[%emt 0:00:19]} 10. Nxe4 {[%emt 0:02:30]} Nxe4 {[%emt 0:00:45]} 11. Qxe4 {[%emt 0:00:11]} Nf6 {[%emt 0:00:07]} 12. Qc2 {[%emt 0:05:36]} O-O {[%emt 0:03:02]} 13. Rd1 {[%emt 0:00:27]} Qc8 {[%emt 0:08:37]} 14. c5 {[%emt 0:09:44] E09: Closed Catalan: Main Line: 7 Qc2 c6 8 Nbd2.} Rd8 {[%emt 0:04:10]} 15. Bd2 {[%emt 0:05:21]} (15. Be3 {is interesting.} h6 16. Ne5 Nd5 17. Be4) 15... bxc5 {[%emt 0:07:20]} 16. dxc5 {[%emt 0:00:26] White is slightly better.} Rd5 {[%emt 0:00:06]} 17. b4 {[%emt 0:01:11]} a5 $1 {[%emt 0:09:48]} 18. a3 {[%emt 0:01:15]} axb4 {[%emt 0:03:20]} 19. axb4 {[%emt 0:00:24] [#]} Rxa1 $146 {[%emt 0:01:02]} ({Predecessor:} 19... Ba6 20. Ng5 Bd3 21. Qc3 Rd8 22. Rxa8 Qxa8 23. Ra1 Qb7 24. Qa3 Bb5 25. Nf3 Ne4 26. Be3 Bf6 {0-1 (48) Suominen,A (2025)-Auvinen,E (2032) Helsinki 2009}) 20. Rxa1 {[%emt 0:00:07]} Ba6 {[%emt 0:02:04]} 21. Qa4 {[%emt 0:16:04]} Be2 {[%emt 0:07:15] aiming for ...Bxf3.} 22. Bf4 {[%emt 0:17:03]} Bb5 {[%emt 0:02:33]} 23. Qa7 {[%emt 0:02:48] Threatens to win with Ne5.} Rd7 {[%emt 0:01:59]} 24. Qb8 {[%emt 0:00:05]} Qxb8 {[%emt 0:06:57]} 25. Bxb8 {[%emt 0:00:06]} h6 {[%emt 0:10:02]} 26. Ne5 {[%emt 0:01:21]} (26. Be5 $14) 26... Rd4 $1 $11 {[%emt 0:00:01][%cal Bd7d4,Bd4b4,Bb4b2][%mdl 32]} 27. Bxc6 {[%emt 0:06:57]} Rxb4 {[%emt 0:00:06]} 28. Ba7 {[%emt 0:02:50]} Ne4 {[%emt 0:01:57]} (28... Nd5 $11) 29. Rc1 {[%emt 0:02:22]} (29. Bxb5 $1 $16 Rxb5 30. Ra6) 29... Ba6 {[%emt 0:07:45]} 30. Be8 {[%emt 0:01:20]} (30. Bb6 $5 {[%cal Rb6a5]}) 30... Bf6 {[%emt 0:00:12]} 31. Bxf7+ {[%emt 0:01:19]} (31. f4 $1 $11 Bxe5 32. fxe5) 31... Kf8 $15 {[%emt 0:00:07]} 32. Nc6 {[%emt 0:00:03]} Rb2 {[%emt 0:01:42]} (32... Ra4 $5 {[%cal Rf8f7]} 33. Bxe6 Nc3 34. Rxc3 Bxc3 $17) 33. Bxe6 {[%emt 0:00:11] Black must now prevent Nb8.} Nxf2 {[%emt 0:00:21]} (33... Nc3 $5 {[%cal Rc3e2]} 34. Nb8 Ne2+ 35. Kg2 Bb7+ 36. c6 Nxc1 37. cxb7 Rxb7 $15) 34. Bb8 {[%emt 0:01:04] Bd6+ is the strong threat.} Bb7 {[%emt 0:00:46]} (34... Nd3 $11 {was preferrable.} 35. Bd6+ Ke8) 35. Bd6+ {[%emt 0:01:32]} (35. Ne5 $5 {[%cal Rb8d6]} Ke7 36. Bf5 $16) 35... Ke8 {[%emt 0:00:05]} 36. Bd5 {[%emt 0:01:50]} Nh3+ {[%emt 0:01:02]} 37. Kf1 {[%emt 0:00:36]} Rf2+ {[%emt 0:00:05]} 38. Ke1 {[%emt 0:00:01]} Rxh2 {[%emt 0:00:13]} 39. Rb1 {[%emt 0:01:51]} Bc3+ {[%emt 0:00:13]} 40. Kd1 {[%emt 0:00:01]} Nf2+ {[%emt 0:04:57]} (40... Bb2 $11 {keeps the balance.}) 41. Kc2 {[%emt 0:00:01] White is much more active.} Ne4+ {[%emt 0:00:06]} 42. Kd3 {[%emt 0:00:12]} Nxd6 {[%emt 0:00:06]} 43. Kxc3 {[%emt 0:01:12]} Rh5 {[%emt 0:00:02]} 44. cxd6 {[%emt 0:01:03]} (44. Re1+ $1 $14 Kf8 45. Ne7 $1 (45. cxd6 Rxd5 46. Nd4 Ba6 $15) 45... Nb5+ 46. Kb4 Bxd5 47. Nxd5 (47. Kxb5 Rh1 $16)) 44... Rxd5 $11 {[%emt 0:00:07]} 45. Rxb7 {[%emt 0:00:03]} Rxd6 $14 {[%emt 0:00:05][%mdl 12288] Endgame KRN-KR. White leaves nothing to chance now.} (45... Rc5+ $1 $11 46. Kd4 Rxc6) 46. Nd4 $18 {[%emt 0:00:53]} Rg6 {[%emt 0:00:05]} 47. Ne2 {[%emt 0:00:48]} Kf8 {[%emt 0:00:11]} 48. Kd4 {[%emt 0:00:08]} Kg8 {[%emt 0:00:04]} 49. Ke4 {[%emt 0:00:17]} Re6+ {[%emt 0:00:10]} 50. Kf3 {[%emt 0:00:05] Strongly threatening Nf4.} Rf6+ {[%emt 0:00:03]} (50... h5 51. Nf4 Re5) 51. Kg4 {[%emt 0:00:06]} Rg6+ {[%emt 0:00:07]} 52. Kh3 {[%emt 0:00:14]} Rg5 {[%emt 0:00:19]} 53. Nf4 {[%emt 0:00:17]} Re5 {[%emt 0:00:01]} 54. Rb8+ {[%emt 0:01:53]} Kf7 {[%emt 0:00:24] [#]} 55. Rf8+ $3 {[%emt 0:00:10][%mdl 512]} Kxf8 {[%emt 0:00:10] KR-KN} (55... Ke7 56. Ng6+) 56. Ng6+ {[%emt 0:00:02]} Kf7 {[%emt 0:00:05]} 57. Nxe5+ {[%emt 0:00:03] KN-KPP} Kf6 {[%emt 0:00:06] [#] White mates.} 58. Nf3 $1 {[%emt 0:01:15]} Kf5 {[%emt 0:00:08]} 59. Kh4 {[%emt 0:00:13]} g6 {[%emt 0:00:51]} 60. Nd2 {[%emt 0:00:52]} Ke5 {[%emt 0:00:49]} 61. Kg4 {[%emt 0:00:16]} Kd4 {[%emt 0:00:44]} 62. Nf3+ {[%emt 0:01:36]} Ke3 {[%emt 0:02:49]} 63. Nh4 {[%emt 0:00:09]} h5+ {[%emt 0:00:12] [#]} 64. Kh3 $1 {[%emt 0:00:04]} g5 {[%emt 0:00:13]} 65. Nf5+ {[%emt 0:00:03] Weighted Error Value: White=0.16 (very precise) /Black=0.31} 1-0

[Event "5th Sharjah Masters 2022"]
[Site "Sharjah"]
[Date "2022.05.24"]
[Round "4.17"]
[White "Yakubboev, Nodirbek"]
[Black "Van Foreest, Lucas"]
[Result "1/2-1/2"]
[ECO "D35"]
[WhiteElo "2630"]
[BlackElo "2572"]
[Annotator "TA"]
[PlyCount "35"]
[EventDate "2022.05.21"]
[EventType "swiss"]
[EventCountry "UAE"]
[SourceTitle "playchess.com"]
[Source "ChessBase"]
[SourceQuality "1"]
[TimeControl "5400+30"]

{[%evp 9,35,7,31,29,35,32,31,16,19,16,17,18,14,0,0,-10,-9,-7,-5,-10,-3,-13,-22,-9,-8,-10,-10,-14]} 1. c4 {[%emt 1:31:00]} e6 {[%emt 0:00:25]} 2. Nc3 {[%emt 0:00:00]} d5 {[%emt 0:00:14]} 3. d4 {[%emt 0:00:00]} Nf6 {[%emt 0:00:07]} 4. cxd5 {[%emt 0:00:00]} exd5 {[%emt 0:00:06]} 5. Bg5 {[%emt 0:00:00]} Be6 {[%emt 0:00:15]} 6. e3 {[%emt 0:00:00] D35: Queen's Gambit Declined: Exchange Variation.} Nbd7 {[%emt 0:00:09] 6...Bd6 is not played anymore.} 7. Bd3 {[%emt 0:00:00]} c6 {[%emt 0:00:05]} 8. Nge2 {[%emt 0:00:00][%cal Bg1e2,Be2g3,Bg3f5][%mdl 32] White is slightly better.} h6 {[%emt 0:00:05][%cal Bh7h6,Bh6h5,Bh5h4][%mdl 32] The position is equal.} 9. Bh4 {[%emt 0:00:00]} g5 {[%emt 0:00:05] Against Nf4} 10. Bg3 {[%emt 0:00:00]} Nh5 $1 {[%emt 0:00:03]} 11. Qc2 {[%emt 0:00:00]} Nxg3 {[%emt 0:00:05]} 12. Nxg3 {[%emt 0:00:00]} h5 {[%emt 0:00:04]} 13. O-O-O {[%emt 0:00:00]} h4 {[%emt 0:05:50]} 14. Nf5 {[%emt 0:00:00]} Nb6 {[%emt 0:01:10]} 15. g4 {[%emt 0:00:00]} Qc7 {[%emt 0:02:51]} 16. h3 {[%emt 0:00:00]} O-O-O {[%emt 0:00:33]} 17. Kb1 {[%emt 0:00:00]} Kb8 {[%emt 0:00:14] [#]} 18. Ka1 $146 {[%emt 0:00:00] Weighted Error Value: White=0.03 (flawless) /Black=0.02 (flawless)} ({Predecessor:} 18. Rc1 Bxf5 19. Bxf5 Bd6 20. Bd3 Rhe8 21. Na4 Nxa4 22. Qxa4 Qb6 23. Rc3 Qb4 24. Qc2 {1-0 (46) Nikolov,M (2533)-Tica,S (2396) Zagreb 2019}) 1/2-1/2

[Event "5th Sharjah Masters 2022"]
[Site "Sharjah"]
[Date "2022.05.24"]
[Round "4.18"]
[White "Hovhannisyan, Robert"]
[Black "Fedoseev, Vladimir"]
[Result "1/2-1/2"]
[ECO "B12"]
[WhiteElo "2607"]
[BlackElo "2701"]
[Annotator "TA"]
[PlyCount "87"]
[EventDate "2022.05.21"]
[EventType "swiss"]
[EventCountry "UAE"]
[SourceTitle "playchess.com"]
[Source "ChessBase"]
[SourceQuality "1"]
[TimeControl "5400+30"]

{[%evp 10,87,22,25,37,27,35,36,62,57,71,72,69,56,55,38,38,35,31,9,3,0,0,0,0,0,60,20,15,15,23,7,6,6,12,17,18,8,24,18,18,24,68,31,14,7,35,0,0,0,0,0,0,0,0,-1,0,0,15,8,5,0,72,49,71,69,69,68,131,33,20,10,12,11,11,8,8,8,8,8]} 1. e4 {[%emt 0:00:04]} c6 {[%emt 0:00:06]} 2. d4 {[%emt 0:00:18]} d5 {[%emt 0:00:07]} 3. e5 {[%emt 0:00:07]} Bf5 {[%emt 0:00:07]} 4. Nf3 {[%emt 0:00:32]} e6 {[%emt 0:00:08]} 5. Be2 {[%emt 0:00:04]} Ne7 {[%emt 0:00:12]} 6. O-O {[%emt 0:01:11]} Ng6 {[%emt 0:00:08] B12: Caro-Kann: Advance Variation.} 7. a4 {[%emt 0:07:09]} Nd7 {[%emt 0:07:08]} 8. Ne1 {[%emt 0:02:19] [#] Hoping for g4.} h5 {[%emt 0:00:09] White is slightly better.} 9. Na3 {[%emt 0:01:10][%cal Bb1a3,Ba3c2,Bc2d4][%mdl 32]} h4 {[%emt 0:08:05]} 10. c3 {[%emt 0:03:01] [#]} c5 $146 {[%emt 0:00:41]} ({Predecessor:} 10... f6 11. f4 Kf7 12. Nac2 Be4 13. Nf3 Be7 14. Nd2 Bxc2 15. Qxc2 f5 16. a5 Nb8 {½-½ (82) Hovhannisyan,R (2622)-Cori,J (2655) Riga 2021}) 11. Nac2 {[%emt 0:02:34]} Ne7 {[%emt 0:01:16]} 12. dxc5 {[%emt 0:07:03]} Nxc5 {[%emt 0:01:20]} 13. Nd4 {[%emt 0:02:54]} a6 {[%emt 0:00:56]} 14. Bg5 {[%emt 0:03:22]} Qb6 {[%emt 0:08:36]} 15. Bxe7 {[%emt 0:14:20]} Bxe7 {[%emt 0:00:08]} 16. Nxf5 {[%emt 0:00:05]} exf5 {[%emt 0:00:08]} 17. Nd3 {[%emt 0:00:20]} Rd8 {[%emt 0:09:38]} (17... Ne4 $11) 18. a5 {[%emt 0:03:48]} Qe6 {[%emt 0:01:17]} 19. Nxc5 {[%emt 0:04:30]} Bxc5 {[%emt 0:01:14]} 20. Qa4+ {[%emt 0:13:35]} Kf8 {[%emt 0:02:42]} 21. Qf4 {[%emt 0:03:29]} h3 {[%emt 0:05:48]} 22. g3 {[%emt 0:00:17]} g6 {[%emt 0:07:08]} 23. Rad1 {[%emt 0:03:13]} Kg7 {[%emt 0:00:29]} ({But not} 23... f6 {[#]} 24. exf6 $1 Qe4 25. Bf3 Qxf4 26. gxf4 $16) 24. Rfe1 {[%emt 0:01:26]} Rd7 {[%emt 0:03:52]} 25. Rd3 {[%emt 0:01:28]} Re8 {[%emt 0:10:44]} 26. Bf1 {[%emt 0:00:52]} Rh8 {[%emt 0:01:32]} 27. Red1 {[%emt 0:01:34]} Ba7 {[%emt 0:01:01]} 28. Qf3 {[%emt 0:06:27][%cal Rd3d5]} Rhd8 {[%emt 0:01:05]} 29. Bxh3 {[%emt 0:01:01]} Qxe5 {[%emt 0:00:56]} 30. b4 {[%emt 0:03:42]} Rc7 {[%emt 0:05:15]} 31. Bg2 {[%emt 0:02:11]} d4 {[%emt 0:01:36]} 32. h4 {[%emt 0:02:26]} Qe7 {[%emt 0:05:18]} (32... Rdd7 {is interesting.} 33. Kh2 Qe4 34. h5 gxh5 35. Qxh5 Qg4) 33. h5 {[%emt 0:04:54]} Rcd7 {[%emt 0:02:35]} 34. hxg6 {[%emt 0:00:55]} fxg6 {[%emt 0:00:08]} 35. Qf4 {[%emt 0:02:35]} Rf8 {[%emt 0:04:13]} (35... dxc3 $11 36. Rxd7 Rxd7 37. Rxd7 Qxd7 38. Qe5+ Kh7 39. Qxc3 Qd1+ 40. Bf1 Qd5) 36. Qd2 {[%emt 0:01:33] White is more active.} ({Of course not} 36. cxd4 Qxb4 37. Qe5+ Rf6 $11) 36... f4 {[%emt 0:00:54] aiming for ...fxg3.} 37. c4 {[%emt 0:00:19]} (37. cxd4 fxg3 38. fxg3 Qe5 $11) 37... fxg3 {[%emt 0:03:36]} 38. fxg3 {[%emt 0:00:42]} Qe5 {[%emt 0:04:15]} (38... Qf6 $14) 39. c5 {[%emt 0:00:03]} ({White should try} 39. Re1 $16 Qh5 40. Re4) 39... Re7 $14 {[%emt 0:01:02]} 40. Qb2 {[%emt 0:01:18] The position is equal.} Bb8 {[%emt 0:01:02]} 41. Qxd4 {[%emt 0:00:51]} Qxd4+ {[%emt 0:00:15]} 42. Rxd4 {[%emt 0:00:03]} Bxg3 {[%emt 0:00:10] ...Bf2+ is the strong threat.} 43. Rd7 {[%emt 0:00:33]} Rff7 {[%emt 0:00:53]} 44. Rxe7 {[%emt 0:00:30] Weighted Error Value: White=0.11 (very precise) /Black=0.12 (very precise)} 1/2-1/2

[Event "5th Sharjah Masters 2022"]
[Site "Sharjah"]
[Date "2022.05.24"]
[Round "4.19"]
[White "Niemann, Hans Moke"]
[Black "Moroni, Luca Jr"]
[Result "1-0"]
[ECO "D35"]
[WhiteElo "2656"]
[BlackElo "2581"]
[Annotator "TA"]
[PlyCount "114"]
[EventDate "2022.05.21"]
[EventType "swiss"]
[EventCountry "UAE"]
[SourceTitle "playchess.com"]
[Source "ChessBase"]
[SourceQuality "1"]
[TimeControl "5400+30"]

{[%evp 15,114,17,21,11,22,9,27,19,22,22,19,20,20,20,25,19,16,25,28,26,27,22,24,22,24,20,31,30,27,26,56,52,70,70,70,70,70,70,71,76,127,113,123,112,119,107,120,120,118,94,112,109,110,112,148,130,138,126,147,151,161,157,160,88,76,64,89,79,115,115,115,115,115,114,114,115,180,126,128,12,12,12,890,801,2013,2045,2412,1590,2509,2419,650,2069,1810,1609,1666,1622,1435,1223,2644,2014,879]} 1. d4 {[%emt 0:00:04]} d5 {[%emt 0:00:03]} 2. c4 {[%emt 0:00:17]} e6 {[%emt 0:00:04]} 3. Nc3 {[%emt 0:00:12]} Nf6 {[%emt 0:00:05]} 4. cxd5 {[%emt 0:00:10]} exd5 {[%emt 0:00:05]} 5. Bg5 {[%emt 0:00:09]} c6 {[%emt 0:00:04]} 6. e3 {[%emt 0:00:06]} h6 {[%emt 0:00:04]} 7. Bh4 {[%emt 0:00:06]} Be7 {[%emt 0:00:04]} 8. Bd3 {[%emt 0:00:46]} O-O {[%emt 0:00:06]} 9. Nge2 $1 {[%emt 0:01:49][%mdl 4] is more profitable than 9.Qc2 at the moment. D35: Queen's Gambit Declined: Exchange Variation.} Re8 {[%emt 0:00:12]} 10. O-O {[%emt 0:00:55]} a5 {[%emt 0:00:02]} 11. h3 {[%emt 0:05:06] White has an edge.} Na6 {[%emt 0:00:09][%cal Bb8a6,Ba6c7,Bc7e6][%mdl 32]} 12. a3 {[%emt 0:01:20]} Nc7 {[%emt 0:04:30]} 13. Qc2 {[%emt 0:04:27]} Ne6 {[%emt 0:05:32]} 14. Bg3 {[%emt 0:00:34] [#]} Bd6 $146 {[%emt 0:06:20]} ({Predecessor:} 14... Bf8 15. Rac1 Ng5 16. Be5 Nd7 17. Bg3 Nf6 18. Bh2 Bd7 19. Be5 Nfe4 20. Kh1 Nxc3 21. Nxc3 {½-½ (29) Eigenmann,W (2135)-Quiroga Martinez,J (2108) ICCF email 2021}) 15. Bxd6 {[%emt 0:02:58]} Qxd6 {[%emt 0:00:52]} 16. Na4 {[%emt 0:00:06]} Ng5 {[%emt 0:10:09]} 17. Nb6 {[%emt 0:03:36]} Rb8 {[%emt 0:03:24][%cal Oc8h3]} 18. Qc5 {[%emt 0:04:18]} Qd8 {[%emt 0:06:15] aiming for ...Ne6.} 19. Nxc8 {[%emt 0:05:37] Hoping for Nb6.} (19. Qxa5 $2 Nd7 20. Nc4 (20. h4 $2 Ne6 $19) 20... dxc4 21. Qxd8 Rxd8 $17) 19... Rxc8 {[%emt 0:00:14]} 20. b4 {[%emt 0:00:18]} axb4 {[%emt 0:06:10]} 21. Qxb4 {[%emt 0:00:20]} Rc7 {[%emt 0:02:34]} 22. a4 {[%emt 0:00:46][%cal Ba3a4,Ba4a5][%mdl 32]} Nfe4 {[%emt 0:02:03]} 23. a5 {[%emt 0:02:11]} Qd7 {[%emt 0:09:56][%cal Og5h3]} 24. Nf4 {[%emt 0:01:49]} Ne6 {[%emt 0:06:36]} 25. Nxe6 {[%emt 0:01:34]} Rxe6 {[%emt 0:00:19]} 26. Rfc1 {[%emt 0:00:50]} Qd6 {[%emt 0:06:44]} 27. Qb6 {[%emt 0:04:30]} Qd8 {[%emt 0:08:50]} (27... Nf6 $142) 28. Bxe4 {[%emt 0:00:46]} dxe4 {[%emt 0:00:10]} 29. Rc5 {[%emt 0:00:19][%cal Od4d5]} Rd7 {[%emt 0:03:10] Prevents d5.} 30. Qb3 {[%emt 0:02:13]} Kh7 {[%emt 0:03:41]} 31. Ra4 {[%emt 0:00:53][%cal Ba1a4,Ba4b4,Bb4b6][%mdl 32]} Qa8 {[%emt 0:02:57]} 32. Qb6 {[%emt 0:02:13]} Qd8 {[%emt 0:00:14]} 33. Qb2 {[%emt 0:02:12]} Qa8 {[%emt 0:00:29][%cal Ob7b6]} 34. Rb4 {[%emt 0:00:44]} Qa6 {[%emt 0:04:32]} 35. Rb6 {[%emt 0:00:49]} Qa8 {[%emt 0:00:03]} 36. Qb3 {[%emt 0:00:53]} Qa7 {[%emt 0:02:56]} 37. Qb4 {[%emt 0:01:41]} Rde7 {[%emt 0:01:56]} 38. h4 {[%emt 0:01:52]} Qa8 {[%emt 0:01:44]} 39. h5 {[%emt 0:01:50]} (39. g3 $142 $1) 39... Qc8 $16 {[%emt 0:00:57]} 40. d5 {[%emt 0:01:06][%cal Bd4d5,Bd5d6,Bd6e7][%mdl 32]} Re5 {[%emt 0:00:39] Threatens to win with ...Qg4.} 41. d6 {[%emt 0:04:58]} Qg4 {[%emt 0:01:16]} 42. f3 $1 {[%emt 0:00:31]} (42. dxe7 $6 Qd1+ 43. Kh2 Qxh5+ 44. Kg1 (44. Kg3 g5) 44... Qd1+ 45. Kh2 Qh5+ 46. Kg1 (46. Kg3 g5) 46... Qd1+ 47. Kh2 Qh5+ $11) 42... Qg3 {[%emt 0:00:24][%cal Oe4f3]} 43. dxe7 {[%emt 0:01:19]} Rxc5 {[%emt 0:01:11]} 44. Qxe4+ {[%emt 0:03:04][%mdl 4096] Endgame KQR-KQR} (44. Qxc5 $6 Qe1+ 45. Kh2 Qh4+ 46. Kg1 Qe1+ 47. Kh2 Qh4+ 48. Kg1 Qe1+ $11) 44... f5 {[%emt 0:00:01][%cal Rc5c1]} 45. Qb1 $36 {[%emt 0:00:06][%mdl 2048] Against Rc1+. Black is under strong pressure.} Rc2 {[%emt 0:00:03]} 46. Qf1 $18 {[%emt 0:00:14]} (46. Qxc2 Qe1+ 47. Kh2 Qh4+ 48. Kg1 Qe1+ 49. Kh2 Qh4+ 50. Kg1 Qe1+ $11) 46... Qe5 {[%emt 0:00:15][%csl LRa5,LRe3,LRe7]} 47. Rxb7 {[%emt 0:03:00]} (47. Qd3 $1 $16 Rc1+ 48. Kf2 Qxe7 49. Qxf5+ Kg8 50. Qe4 (50. Qc8+ Kh7 $18) 50... Qxe4 51. fxe4) 47... Qxe3+ $11 {[%emt 0:00:13]} 48. Kh2 {[%emt 0:00:04] Black must now prevent a6.} Qg5 $2 {[%emt 0:04:54][%mdl 8192] Black cannot hold the game after this.} (48... Re2 $11) 49. f4 $18 {[%emt 0:01:52] Active counter play! White is clearly winning.} ({Not} 49. e8=Q Qh4+ 50. Kg1 Qd4+ 51. Kh2 (51. Kh1 Qh4+ 52. Kg1 Qd4+ 53. Kh2 Qh4+ 54. Kg1 $11) 51... Qh4+ 52. Kg1 Qd4+ 53. Kh2 (53. Kh1 Qh4+ 54. Kg1 $11) 53... Qh4+ $11) 49... Rxg2+ {[%emt 0:00:45]} 50. Qxg2 {[%emt 0:00:49]} Qh4+ {[%emt 0:00:07]} 51. Kg1 $1 {[%emt 0:00:07] Threatening mate with Qg6+.} Qe1+ {[%emt 0:00:03]} 52. Qf1 $1 {[%emt 0:00:06]} Qg3+ {[%emt 0:00:03]} 53. Kh1 $1 {[%emt 0:00:07]} Qh4+ {[%emt 0:00:03]} 54. Kg2 $1 {[%emt 0:00:07] White wants to mate with Qe2.} Qg4+ {[%emt 0:00:03] [#]} 55. Kf2 $1 {[%emt 0:00:14]} Qxf4+ {[%emt 0:00:02]} 56. Ke2 {[%emt 0:00:34]} Qc4+ {[%emt 0:00:02] [#]} 57. Kd2 $1 {[%emt 0:00:11]} Qxf1 {[%emt 0:01:02] Weighted Error Value: White=0.08 (flawless) /Black=0.12 (very precise)} 1-0